Cogmind - Beta 9.4 @@@ ROGUE MODE // 2020.02.24 @ 05:28:54 Player: Xeram Result: Destroyed by G-73 Enforcer with Heavy Laser Performance ------------- Evolutions (5) 2500 Regions Visited (14) 2800 Robots Destroyed (177) 885 Value Destroyed (6948) 6948 Prototype IDs (18) 360 Alien Tech Used (2) 400 Bonus (2884) 2884 TOTAL SCORE: 16777 Bonus ------- High Alert Combat Kills 1533 Follower Combat Kills 241 Entered Garrisons 400 Used RIF Installer 1000 Met Zhirov 300 Friendly Fire -590 Cogmind --------- Core Integrity 0/1000 Matter 157/300 Energy 100/100 System Corruption 22% Temperature Cool (18) Movement Walking (180) Ox2 Location -4/Proximity Caves Parts ------- > --- POWER (2) -------- (None) > --- PROPULSION (4) --- Advanced Myomer Leg > --- UTILITY (8) ------ High-capacity Storage Unit High-capacity Storage Unit Improved Launcher Guidance Computer Armor Integrity Analyzer > --- WEAPON (3) ------- (None) > --- INVENTORY (20) --- Reinforced Deuterium Engine Reinforced Deuterium Engine Light Angular Momentum Engine Particle Reactor Medium Treads Medium Treads Advanced Heat Sink Advanced Heat Sink Advanced Heat Sink Compact Matter Pod (150) Improved Sensor Array Advanced Terrain Scanner Improved Light Cannon Peak State ------------ > --- POWER ------------ Heavy Antimatter Reactor > --- PROPULSION ------- Advanced Myomer Leg Advanced Myomer Leg Advanced Myomer Leg > --- UTILITY ---------- Advanced Heat Sink High-capacity Storage Unit High-capacity Storage Unit Advanced Energy Well Advanced Targeting Computer Improved Launcher Guidance Computer Armor Integrity Analyzer Particle Accelerator > --- WEAPON ----------- Wave Gun Railgun Magnetic Acceleration Cannon > --- INVENTORY -------- Reinforced Deuterium Engine Reinforced Deuterium Engine Light Angular Momentum Engine Particle Reactor Medium Treads Medium Treads Advanced Heat Sink Advanced Heat Sink Advanced Heat Sink Compact Matter Pod Improved Sensor Array Advanced Terrain Scanner Core Shielding Heavy Armor Plating Enhanced Autogun Improved Light Cannon Grenade Launcher Missile Launcher [Rating: 90] Favorites ----------- Power Reinforced Deuterium Engine Engine Reinforced Deuterium Engine Power Core Light Nuclear Core Reactor Heavy Antimatter Reactor Propulsion Light Treads Treads Light Treads Leg Advanced Myomer Leg Utility High-capacity Storage Unit Device Advanced Heat Sink Storage High-capacity Storage Unit Processor Advanced Targeting Computer Protection Hardened Medium Armor Plating Weapon Enhanced Autogun Energy Gun Beam Rifle Ballistic Gun Enhanced Autogun Ballistic Cannon Improved Light Cannon Launcher Advanced EMP Blaster Build | -11 -10 -9 -8 -8 -8 -8 -6 -6 -6 -5 -5 -5 -5 -4 ------- Run | Scr Mat Mat Mat Sto Gar Rec Fac Gar Ext Fac Upp Upp Zhi Pro Slots Evolved 10 | . . 2 2 . . . 4 . . 2 . . . . Power 1 | . . . . . . . 1 . . . . . . . Propulsion 2 | . . 1 . . . . 1 . . . . . . . Utility 6 | . . . 2 . . . 2 . . 2 . . . . Weapon 1 | . . 1 . . . . . . . . . . . . Parts Attached 140 | 6 5 6 5 9 20 . 6 15 34 3 8 9 8 6 Power 13 | 1 . . 1 . 2 . 1 2 5 . . . 1 . Engine 8 | 1 . . . . . . . 2 5 . . . . . Core 4 | . . . 1 . 2 . 1 . . . . . . . Reactor 1 | . . . . . . . . . . . . . 1 . Propulsion 31 | 2 . 1 1 1 4 . 1 1 12 . 1 3 3 1 Treads 23 | 2 . 1 1 1 4 . 1 1 8 . 1 3 . . Leg 8 | . . . . . . . . . 4 . . . 3 1 Wheel . | . . . . . . . . . . . . . . . Hover . | . . . . . . . . . . . . . . . Flight . | . . . . . . . . . . . . . . . Utility 34 | 1 2 . 3 2 1 . 4 4 5 3 1 3 3 2 Device 10 | . . . 2 . . . 3 1 1 1 . 1 1 . Storage 4 | 1 2 . . . . . . . . . . . 1 . Processor 5 | . . . . 1 . . 1 . . 1 1 1 . . Hackware . | . . . . . . . . . . . . . . . Protection 15 | . . . 1 1 1 . . 3 4 1 . 1 1 2 Artifact . | . . . . . . . . . . . . . . . Weapon 62 | 2 3 5 . 6 13 . . 8 12 . 6 3 1 3 Energy Gun 6 | 1 2 2 . . . . . . . . . . 1 . Energy Cannon . | . . . . . . . . . . . . . . . Ballistic Gun 30 | 1 1 . . 4 7 . . 4 9 . 1 2 . 1 Ballistic Cannon 5 | . . 3 . . . . . . . . 1 1 . . Launcher 21 | . . . . 2 6 . . 4 3 . 4 . . 2 Special Weapon . | . . . . . . . . . . . . . . . Impact Weapon . | . . . . . . . . . . . . . . . Slashing Weapon . | . . . . . . . . . . . . . . . Piercing Weapon . | . . . . . . . . . . . . . . . Special Melee Weapon . | . . . . . . . . . . . . . . . Unidentified Prototypes 9 | . . 1 . 2 . . . . . . . . 6 . Parts Lost 68 | . 1 . . 3 5 . 2 7 19 . 7 8 . 16 Power 9 | . . . . . 1 . 1 1 5 . . . . 1 Propulsion 18 | . . . . 1 3 . 1 2 4 . 1 3 . 3 Utility 21 | . . . . 2 1 . . 3 5 . 3 1 . 6 Weapon 20 | . 1 . . . . . . 1 5 . 3 4 . 6 Highest Loss Streak 10 | . 1 . . 1 2 . 2 6 6 . 3 6 . 10 Average Slot Usage (%) 92 | . 85 90 97 98 99 100 90 87 93 99 90 87 83 64 Engine 6 | . 14 11 7 . . . . 10 11 11 11 11 5 . Core 3 | . . . 1 9 8 9 11 . . . . . . . Treads 22 | . 28 27 27 26 26 27 19 16 18 23 20 21 12 . Device 5 | . . . 6 6 . . 8 5 9 11 9 9 11 4 Storage 14 | . 15 22 18 18 18 18 13 13 13 11 11 11 13 13 Processor 7 | . . . . . 9 9 10 6 6 11 10 13 17 13 Protection 6 | . . . 9 9 8 9 6 11 8 10 6 1 2 . Energy Gun 1 | . 18 18 . . . . . . . . . . . 1 Ballistic Gun 14 | . 7 11 . 17 25 27 20 15 17 17 8 1 5 4 Ballistic Cannon 2 | . . . 27 8 . . . . . . 2 1 5 1 Launcher 2 | . . . . 1 1 . . 3 1 . 5 12 . . Naked Turns . | . . . . . . . . . . . . . . . Heaviest Build 132 | 11 73 81 85 89 92 86 94 108 113 125 132 122 111 108 Greatest Support 118 | 40 40 60 63 63 63 60 60 60 110 110 118 118 90 110 Greatest Overweight (x) 28 | . 1 1 1 1 2 1 2 2 28 1 1 1 3 1 Average Overweight (x) . | . . 1 1 1 1 1 1 1 1 1 1 . 1 . Largest Inventory Capacity 20 | 6 20 20 20 20 20 20 20 20 20 20 20 20 20 20 Average Capacity 19 | 5 7 20 20 20 20 20 20 20 20 20 20 20 20 20 Most Carried 20 | 1 4 15 19 20 20 19 20 20 20 20 16 19 20 19 Average Carried 16 | . 3 5 16 19 18 18 18 19 18 17 13 16 16 14 Final Capacity 20 | 6 20 20 20 20 20 20 20 20 20 20 20 20 20 20 Final Carried 20 | 1 4 15 19 20 18 19 20 20 20 16 13 14 19 13 Class Distribution -------------------- 24% | Scavenger-Gunner 24% | Hauler-Tank 11% | Scavenger-Tank 9% | Scavenger-Mutant 8% | Hauler-Mutant 7% | Hauler-Gunner 5% | Commander-Tank 3% | Mutant Dominant Class ---------------- Mutant | -10/Materials Hauler-Gunner | -9/Materials Hauler-Tank | -8/Materials Hauler-Tank | -8/Storage Hauler-Tank | -8/Garrison Commander-Tank | -8/Recycling Hauler-Gunner | -6/Factory Scavenger-Mutant | -6/Garrison Scavenger-Gunner | -6/Extension Scavenger-Gunner | -5/Factory Scavenger-Gunner | -5/Upper Caves Scavenger-Gunner | -5/Upper Caves Scavenger-Mutant | -5/Zhirov Hauler-Mutant | -4/Proximity Caves Resources | -11 -10 -9 -8 -8 -8 -8 -6 -6 -6 -5 -5 -5 -5 -4 ----------- Run | Scr Mat Mat Mat Sto Gar Rec Fac Gar Ext Fac Upp Upp Zhi Pro Matter Collected 4222 | 220 62 72 81 700 360 205 207 329 1343 . 329 263 . 51 Remotely . | . . . . . . . . . . . . . . . Salvage Created 8593 | . 172 308 81 916 978 195 288 986 2096 . 1197 1310 . 66 Parts 369 | . 8 16 5 50 52 14 12 35 101 . 30 39 . 7 Haulers Intercepted 3 | . . 1 . 2 . . . . . . . . . . Recyclers Shooed 11 | . . . . 2 . 4 1 . 4 . . . . . Parts Field Recycled . | . . . . . . . . . . . . . . . Retrieved Matter . | . . . . . . . . . . . . . . . Parts Self-Destructed 27 | . . . . . . . . . . . 7 14 . 6 Prevented 34 | . . . . . . . . . . . 13 19 . 2 Kills | -11 -10 -9 -8 -8 -8 -8 -6 -6 -6 -5 -5 -5 -5 -4 ------- Run | Scr Mat Mat Mat Sto Gar Rec Fac Gar Ext Fac Upp Upp Zhi Pro Combat Hostiles Destroyed 148 | . 3 5 3 12 26 2 3 23 29 . 18 22 . 2 Melee 2 | . . . . . . 1 . . . . . 1 . . Guns 77 | . 3 5 . 10 11 1 3 10 29 . 4 . . 1 Cannons 5 | . . . 3 1 . . . . . . . 1 . . AOE 54 | . . . . 1 15 . . 13 . . 7 17 . 1 Classes Destroyed 18 | . 2 3 . 4 2 1 2 1 2 . . 1 . . Worker 4 | . . . . 2 . . . . 2 . . . . . Builder 3 | . . . . 1 . . . . 2 . . . . . Hauler 3 | . . 1 . 2 . . . . . . . . . . Recycler 8 | . . . . 2 . 3 1 . 2 . . . . . Minesweeper 1 | . . . . . . . . . . . . 1 . . Operator 2 | . . 1 . . . . . . 1 . . . . . Drone 2 | . . . . . . 2 . . . . . . . . Watcher 5 | . 2 1 . . . . . . 2 . . . . . Swarmer 30 | . . . . 1 8 . 2 8 4 . 1 6 . . Grunt 73 | . 3 4 1 7 11 . . 9 16 . 11 11 . . Brawler 6 | . . . . . . . 1 1 1 . 2 1 . . Duelist 7 | . . . . . 3 . . 2 . . 1 1 . . Protector 1 | . . . . . . . . . 1 . . . . . Sentry 21 | . . 1 2 5 2 . . 1 5 . 2 3 . . Specialist 2 | . . . . . . . . 2 . . . . . . Hunter 2 | . . . . . 2 . . . . . . . . . Programmer 3 | . . . . . . . 1 . . . . . . 2 Behemoth 4 | . . . . . . . . . 2 . 1 1 . . Best Kill Streak 13 | . 2 3 2 8 5 5 3 13 6 . 11 7 . 2 Combat Bots Only 13 | . 2 3 2 3 5 2 2 13 6 . 11 7 . 2 Max Kills in Single Turn 7 | . 1 1 1 1 3 1 1 7 1 . 3 6 . 2 Gunslinging 1 | . . . . . 1 . . . . . . . . . Exploded 7 | . . . . 1 3 . . 7 . . 3 6 . 1 Melee 1 | . . . . . . 1 . . . . . 1 . . Uniques/NPCs Destroyed . | . . . . . . . . . . . . . . . Combat | -11 -10 -9 -8 -8 -8 -8 -6 -6 -6 -5 -5 -5 -5 -4 -------- Run | Scr Mat Mat Mat Sto Gar Rec Fac Gar Ext Fac Upp Upp Zhi Pro Damage Taken 11822 | . 240 105 276 659 1110 . 333 999 2942 . 1240 1044 . 2874 Core 1645 | . 44 15 . 58 70 . 16 138 353 . 79 195 . 677 Absorbed by Shields . | . . . . . . . . . . . . . . . Core Remaining (%) 78 | 100 82 96 . . . 76 . . 40 . . . . . Volleys Fired 349 | . 19 12 13 53 49 3 17 25 116 . 20 18 . 4 Largest 3 | . 2 3 3 3 3 3 3 3 3 . 3 3 . 3 Hottest 169 | . 112 132 117 117 75 75 75 97 97 . 108 118 . 169 Shots Fired 967 | . 36 35 39 151 113 9 51 60 349 . 60 53 . 11 Gun 807 | . 36 35 . 129 93 9 51 53 345 . 36 13 . 7 Cannon 76 | . . . 39 20 . . . . . . 12 4 . 1 Launcher 84 | . . . . 2 20 . . 7 4 . 12 36 . 3 Special . | . . . . . . . . . . . . . . . Kinetic 825 | . 2 12 39 149 93 9 51 53 345 . 48 17 . 7 Thermal 58 | . 34 23 . . . . . . . . . . . 1 Explosive 11 | . . . . . 7 . . 1 . . . . . 3 Electromagnetic 73 | . . . . 2 13 . . 6 4 . 12 36 . . Robot Hit Streak 29 | . 13 21 5 24 13 2 29 21 17 . 18 19 . 27 Robot Miss Streak 3 | . 2 1 1 2 3 1 2 2 3 . 3 2 . 1 Penetration Max 1 | . . . . . . . . . . . . . . 1 Secondary Targets 7 | . . . . 1 3 . 1 . 2 . . . . . Max Gunslinging Chain 1 | . . . . 1 1 . 1 . 1 . . . . . Shots Hit Robots 676 | . 25 23 29 104 59 5 43 45 260 . 41 33 . 9 Core Hits 363 | . 8 14 4 32 46 6 13 43 113 . 33 37 . 14 Critical Hits 6 | . . . . . . . 1 . 2 . . 3 . . Critical Kills 2 | . . . . . . . 1 . 1 . . . . . Critical Parts Destroyed 3 | . . . . . . . . . 1 . . 2 . . Melee Attacks . | . . . . . . . . . . . . . . . Impact . | . . . . . . . . . . . . . . . Slashing . | . . . . . . . . . . . . . . . Piercing . | . . . . . . . . . . . . . . . Sneak Attacks . | . . . . . . . . . . . . . . . Combat Hostiles . | . . . . . . . . . . . . . . . Follow-up Attacks . | . . . . . . . . . . . . . . . Damage Inflicted 19248 | . 326 263 586 1816 2334 191 805 2446 4994 . 2416 2491 . 580 Guns 10153 | . 326 263 . 1526 964 61 796 799 4471 . 552 281 . 114 Cannons 1025 | . . . 555 109 . . . . . . 210 120 . 31 Explosions 7796 | . . . . 159 1370 . . 1647 511 . 1654 2077 . 378 Melee . | . . . . . . . . . . . . . . . Ramming 274 | . . . 31 22 . 130 9 . 12 . . 13 . 57 Kinetic 10623 | . . 34 555 1635 964 61 796 799 4471 . 762 401 . 145 Thermal 1830 | . 326 229 . . 107 . . 631 170 . 115 252 . . Explosive 1064 | . . . . . 471 . . 215 . . . . . 378 Electromagnetic 5457 | . . . . 159 792 . . 801 341 . 1539 1825 . . Impact . | . . . . . . . . . . . . . . . Slashing . | . . . . . . . . . . . . . . . Piercing . | . . . . . . . . . . . . . . . Highest Corruption 22 | . . 1 . . . . 4 5 12 . 1 2 2 22 Average Corruption 3 | . . 1 . . . . 3 4 5 . 1 1 2 13 Corruption Purged . | . . . . . . . . . . . . . . . Effects 85 | . . 2 . . . . 4 20 46 . 2 4 1 6 Message Errors 17 | . . . . . . . 2 5 6 . 1 2 1 . Matter Fused 10 | . . . . . . . . 3 5 . . . . 2 Heat Flow Errors 6 | . . . . . . . . 2 4 . . . . . Energy Discharges 6 | . . 1 . . . . . 2 3 . . . . . Data Loss (minor) 9 | . . 1 . . . . 2 1 2 . . 2 . 1 Data Loss (major) 2 | . . . . . . . . 1 1 . . . . . Misfires 6 | . . . . . . . . . 5 . . . . 1 Misdirections 1 | . . . . . . . . . 1 . . . . . Targeting Errors 24 | . . . . . . . . 5 16 . 1 . . 2 Weapon Failures 4 | . . . . . . . . 1 3 . . . . . Overload Shots . | . . . . . . . . . . . . . . . Overflow Damage 307 | . . . 34 3 25 . . 25 83 . 24 92 . 21 Projectiles 34 | . . . 34 . . . . . . . . . . . Explosions 273 | . . . . 3 25 . . 25 83 . 24 92 . 21 Melee . | . . . . . . . . . . . . . . . Knockbacks 14 | . . . 10 3 . . . . . . . . . 1 Impact . | . . . . . . . . . . . . . . . Kinetic 11 | . . . 7 3 . . . . . . . . . 1 Secondary 3 | . . . 3 . . . . . . . . . . . Self-Inflicted Damage 387 | . . . . 43 46 . . 18 86 . 25 162 . 7 Shots 19 | . . . . 2 2 . . 1 1 . 2 11 . . Rammed 22 | . . . 1 2 . 13 1 . 3 . . 1 . 1 Targets Rammed 29 | . . . 1 3 . 15 1 . 3 . . 1 . 5 Kicked 4 | . . . . . . . . . . . . . . 4 Crushed 3 | . . . . 1 . 2 . . . . . . . . Highest Temperature 360 | . 299 181 358 161 360 53 . 239 232 . 231 30 . 33 Average Temperature 86 | . 122 73 190 54 119 24 . 52 65 . 73 16 . 18 Received Heat Transfer 2583 | . 135 57 108 207 351 . 9 234 696 . 252 168 . 366 Effects 6 | . 3 . . . 3 . . . . . . . . . Interference 5 | . 3 . . . 2 . . . . . . . . . Damage (minor) 1 | . . . . . 1 . . . . . . . . . Siege Activations . | . . . . . . . . . . . . . . . Robots Corrupted 11 | . . . . . . . . . . . 7 4 . . Combat Hostiles 10 | . . . . . . . . . . . 7 3 . . Parts Fried 29 | . . . . 1 1 . . 1 . . 16 10 . . Impact Corruptions . | . . . . . . . . . . . . . . . Robots Melted . | . . . . . . . . . . . . . . . Combat Hostiles . | . . . . . . . . . . . . . . . Parts Melted 3 | . 3 . . . . . . . . . . . . . Heat Transferred 2484 | . 839 545 . . 150 . . 550 100 . 100 200 . . Parts Sabotaged . | . . . . . . . . . . . . . . . Parts Stolen . | . . . . . . . . . . . . . . . Parts Stripped . | . . . . . . . . . . . . . . . Power Chain Reactions 18 | . . . . . 2 . . 5 2 . 3 6 . . Missiles Intercepted . | . . . . . . . . . . . . . . . Alert | -11 -10 -9 -8 -8 -8 -8 -6 -6 -6 -5 -5 -5 -5 -4 ------- Run | Scr Mat Mat Mat Sto Gar Rec Fac Gar Ext Fac Upp Upp Zhi Pro Peak Influence 1111 | . 99 218 134 426 802 512 1111 1083 882 465 . . . . Average Influence 504 | . 51 104 81 150 518 385 1034 963 762 427 . . . . Maximum Alert Level 4 | . . 1 . 2 3 2 4 3 3 2 . . . . Low Security (%) 29 | 100 100 98 100 71 7 . . . . . . . . . Level 1 16 | . . 1 . 23 33 69 . . . . . . . . Level 2 14 | . . . . 4 13 30 . 8 20 100 . . . . Level 3 38 | . . . . . 45 . 88 91 79 . . . . . Level 4 1 | . . . . . . . 11 . . . . . . . Level 5 . | . . . . . . . . . . . . . . . High Security . | . . . . . . . . . . . . . . . Max Security . | . . . . . . . . . . . . . . . Squads Dispatched 16 | . 1 . 1 3 . . 1 . 8 1 . 1 . . Investigation 1 | . . . . . . . . . 1 . . . . . Extermination 1 | . . . . . . . 1 . . . . . . . Reinforcement 10 | . 1 . 1 1 . . . . 6 1 . . . . Assault 2 | . . . . . . . . . 1 . . 1 . . Garrison 2 | . . . . 2 . . . . . . . . . . Intercept . | . . . . . . . . . . . . . . . Construction Impeded 1 | . . . . . . . . . 1 . . . . . Haulers Reinforced . | . . . . . . . . . . . . . . . Stealth | -11 -10 -9 -8 -8 -8 -8 -6 -6 -6 -5 -5 -5 -5 -4 --------- Run | Scr Mat Mat Mat Sto Gar Rec Fac Gar Ext Fac Upp Upp Zhi Pro Distress Signals 7 | . . . 1 3 . . . . 3 . . . . . Communications Jammed . | . . . . . . . . . . . . . . . Distress Signals . | . . . . . . . . . . . . . . . Times Spotted 218 | . 7 8 7 20 33 16 5 25 46 1 16 24 . 10 Peak Tracking Total 16 | . 2 4 5 5 5 4 4 16 7 . 9 8 . 6 Tactical Retreats 19 | . . 1 2 . 4 . . 3 6 . 1 2 . . Traps | -11 -10 -9 -8 -8 -8 -8 -6 -6 -6 -5 -5 -5 -5 -4 ------- Run | Scr Mat Mat Mat Sto Gar Rec Fac Gar Ext Fac Upp Upp Zhi Pro Traps Triggered 22 | . . 1 . . 6 . 3 4 3 . . 5 . . Indirectly 9 | . . . . . 2 . . 2 . . . 5 . . Trap Hack Attempts . | . . . . . . . . . . . . . . . Triggered . | . . . . . . . . . . . . . . . Disarmed . | . . . . . . . . . . . . . . . Reprogrammed . | . . . . . . . . . . . . . . . Reused . | . . . . . . . . . . . . . . . Traps Extracted . | . . . . . . . . . . . . . . . Installed . | . . . . . . . . . . . . . . . Triggered 4 | . . . . . . . . 1 1 . . 2 . . Machines | -11 -10 -9 -8 -8 -8 -8 -6 -6 -6 -5 -5 -5 -5 -4 ---------- Run | Scr Mat Mat Mat Sto Gar Rec Fac Gar Ext Fac Upp Upp Zhi Pro Machines Disabled 13 | . . . . 1 1 3 . . 4 . 2 2 . . Max in Single Turn 2 | . . . . 1 1 1 . . 2 . 2 1 . . Energy Cycler 2 | . . . . . . . . . 2 . . . . . Machines Sabotaged . | . . . . . . . . . . . . . . . Garrisons Compromised . | . . . . . . . . . . . . . . . Overloaded Fab Kills . | . . . . . . . . . . . . . . . Fab Network Shutdowns . | . . . . . . . . . . . . . . . Hacking | -11 -10 -9 -8 -8 -8 -8 -6 -6 -6 -5 -5 -5 -5 -4 --------- Run | Scr Mat Mat Mat Sto Gar Rec Fac Gar Ext Fac Upp Upp Zhi Pro Machines Accessed 19 | . . 3 . 3 . . 2 . 1 1 . . 9 . Terminals 7 | . . 2 . 2 . . 1 . 1 1 . . . . Fabricators . | . . . . . . . . . . . . . . . Repair Stations . | . . . . . . . . . . . . . . . Recycling Units . | . . . . . . . . . . . . . . . Scanalyzers 1 | . . 1 . . . . . . . . . . . . Garrison Access 2 | . . . . 1 . . 1 . . . . . . . Total Hacks 71 | . . 7 . 6 . . 2 . 4 4 . . 48 . Successful 56 | . . 2 . 1 . . 2 . . 3 . . 48 . Failed 15 | . . 5 . 5 . . . . 4 1 . . . . Catastrophic 3 | . . 1 . 2 . . . . . . . . . . Database Lockouts . | . . . . . . . . . . . . . . . Manual 4 | . . . . 4 . . . . . . . . . . Terminals 18 | . . 5 . 4 . . 1 . 4 4 . . . . Fabricators . | . . . . . . . . . . . . . . . Repair Stations . | . . . . . . . . . . . . . . . Recycling Units . | . . . . . . . . . . . . . . . Scanalyzers 2 | . . 2 . . . . . . . . . . . . Garrison Access 3 | . . . . 2 . . 1 . . . . . . . Terminal Hacks 52 | . . . . . . . 1 . . 3 . . 48 . Record 36 | . . . . . . . . . . . . . 36 . Part Schematic 4 | . . . . . . . . . . . . . 4 . Robot Analysis 4 | . . . . . . . . . . . . . 4 . Prototype ID Bank 4 | . . . . . . . . . . . . . 4 . Branch Access Points 1 | . . . . . . . 1 . . . . . . . Dispatch Records 1 | . . . . . . . . . . 1 . . . . Recall Investigation 1 | . . . . . . . . . . 1 . . . . Zone Layout 1 | . . . . . . . . . . 1 . . . . Fabricator Hacks . | . . . . . . . . . . . . . . . Repair Station Hacks . | . . . . . . . . . . . . . . . Recycling Unit Hacks . | . . . . . . . . . . . . . . . Scanalyzer 2 | . . 2 . . . . . . . . . . . . Insert Component 1 | . . 1 . . . . . . . . . . . . Analyze 1 | . . 1 . . . . . . . . . . . . Garrison Access Hacks 2 | . . . . 1 . . 1 . . . . . . . Unlock Access 2 | . . . . 1 . . 1 . . . . . . . Unauthorized Hacks . | . . . . . . . . . . . . . . . Terminals . | . . . . . . . . . . . . . . . Fabricators . | . . . . . . . . . . . . . . . Repair Stations . | . . . . . . . . . . . . . . . Recycling Units . | . . . . . . . . . . . . . . . Scanalyzers . | . . . . . . . . . . . . . . . Garrison Access . | . . . . . . . . . . . . . . . Data Cores Recovered 1 | . . 1 . . . . . . . . . . . . Used . | . . . . . . . . . . . . . . . Hacking Detections 7 | . . 2 . 3 . . . . 1 1 . . . . Full Trace Events 1 | . . . . . . . . . 1 . . . . . Feedback Events . | . . . . . . . . . . . . . . . Feedback Blocked . | . . . . . . . . . . . . . . . Robot Schematics Acquired . | . . . . . . . . . . . . . . . Robots Built . | . . . . . . . . . . . . . . . Matter . | . . . . . . . . . . . . . . . Time . | . . . . . . . . . . . . . . . Total Robot Build Rating . | . . . . . . . . . . . . . . . Part Schematics Acquired 5 | . . 1 . . . . . . . . . . 4 . Parts Built . | . . . . . . . . . . . . . . . Matter . | . . . . . . . . . . . . . . . Time . | . . . . . . . . . . . . . . . Total Part Build Rating . | . . . . . . . . . . . . . . . Parts Repaired . | . . . . . . . . . . . . . . . Time . | . . . . . . . . . . . . . . . Parts Recycled . | . . . . . . . . . . . . . . . Recycled Matter . | . . . . . . . . . . . . . . . Retrieved Matter . | . . . . . . . . . . . . . . . Retrieved Components . | . . . . . . . . . . . . . . . Parts Scanalyzed 1 | . . 1 . . . . . . . . . . . . Part Schematics Acquired 1 | . . 1 . . . . . . . . . . . . Parts Damaged . | . . . . . . . . . . . . . . . Bothacking | -11 -10 -9 -8 -8 -8 -8 -6 -6 -6 -5 -5 -5 -5 -4 ------------ Run | Scr Mat Mat Mat Sto Gar Rec Fac Gar Ext Fac Upp Upp Zhi Pro Used RIF Installer 2 | . . . . . 1 . . 1 . . . . . . Program Shield 1 | . . . . . . . . 1 . . . . . . Robots Hacked . | . . . . . . . . . . . . . . . Non-combat . | . . . . . . . . . . . . . . . Combat . | . . . . . . . . . . . . . . . Robot Hacks Applied . | . . . . . . . . . . . . . . . Relay Couplers Released . | . . . . . . . . . . . . . . . Robots Rewired 6 | . . . . . . 5 . . . . . 1 . . Allies Hacked . | . . . . . . . . . . . . . . . Hacks Repelled . | . . . . . . . . . . . . . . . Allies | -11 -10 -9 -8 -8 -8 -8 -6 -6 -6 -5 -5 -5 -5 -4 -------- Run | Scr Mat Mat Mat Sto Gar Rec Fac Gar Ext Fac Upp Upp Zhi Pro Total Allies 17 | . . . . 10 . 5 . . 1 . . 1 . . Largest Group 10 | . . . . 10 3 5 5 3 1 . . 1 . . Highest-Rated Group 173 | . . . . 173 61 46 46 31 25 . . 49 . . Highest-Rated Ally 49 | . . . . 29 29 16 16 15 25 . . 49 . . Total Orders . | . . . . . . . . . . . . . . . Ally Attacks 160 | . . . . 33 11 101 11 1 . . . 3 . . Total Damage 1290 | . . . . 439 151 427 93 17 . . . 163 . . Kills 23 | . . . . 6 1 14 1 . . . . 1 . . Allies Corrupted . | . . . . . . . . . . . . . . . Allies Melted . | . . . . . . . . . . . . . . . Intel | -11 -10 -9 -8 -8 -8 -8 -6 -6 -6 -5 -5 -5 -5 -4 ------- Run | Scr Mat Mat Mat Sto Gar Rec Fac Gar Ext Fac Upp Upp Zhi Pro Robot Analysis Total 4 | . . . . . . . . . . . . . 4 . Derelict Logs Recovered 4 | . . . . . . . . . . . 1 2 . 1 Drone Launches . | . . . . . . . . . . . . . . . Drone Recoveries . | . . . . . . . . . . . . . . . Exploration | -11 -10 -9 -8 -8 -8 -8 -6 -6 -6 -5 -5 -5 -5 -4 ------------- Run | Scr Mat Mat Mat Sto Gar Rec Fac Gar Ext Fac Upp Upp Zhi Pro Turns Passed 8356 | 68 309 510 327 849 1060 647 591 722 983 266 781 761 339 143 Spaces Moved 3915 | 39 144 235 139 379 479 315 299 331 351 143 397 392 186 86 Core 4 | 3 . . . . . . . . 1 . . . . . Treads 3726 | 36 144 235 139 379 479 315 299 331 310 143 397 392 127 . Legs 185 | . . . . . . . . . 40 . . . 59 86 Wheels . | . . . . . . . . . . . . . . . Hover . | . . . . . . . . . . . . . . . Flight . | . . . . . . . . . . . . . . . Fastest Speed 50 | 50 160 180 180 180 180 180 180 180 150 180 180 160 150 120 Average Speed 177 | 151 162 180 180 180 180 180 180 189 184 180 180 169 170 135 Slowest Speed 1450 | 160 180 180 180 180 200 180 200 200 1450 180 180 180 210 150 Overloaded Moves . | . . . . . . . . . . . . . . . Propulsion Burnouts . | . . . . . . . . . . . . . . . Robots Hopped . | . . . . . . . . . . . . . . . Cave-ins Triggered 1 | . . . . . . . . . . . . . . 1 Teleports 1 | . . . . . . . . . . . . . 1 . Exploration Rate (%) 40 | 4 34 27 13 60 63 74 12 71 42 7 70 61 62 13 Regions Visited 14 Branch Regions 7 Pre-discovered Areas 6 | . . . . . . . . . . . 1 1 3 1 Known Exits Taken 3 | . . . . 1 . 1 1 . . . . . . . Unknown Exits Taken 9 | 1 1 1 1 . . . . . 1 1 1 1 1 . Scrap Searched 3 | . . . . . . . . . . . 1 2 . . Spaces Dug . | . . . . . . . . . . . . . . . Terrain Destroyed 153 | . . . 1 . 33 . . 16 30 . 17 33 . 23 Melee . | . . . . . . . . . . . . . . . Projectile 13 | . . . 1 . . . . . . . 6 2 . 4 AOE 140 | . . . . . 33 . . 16 30 . 11 31 . 19 Actions | -11 -10 -9 -8 -8 -8 -8 -6 -6 -6 -5 -5 -5 -5 -4 --------- Run | Scr Mat Mat Mat Sto Gar Rec Fac Gar Ext Fac Upp Upp Zhi Pro Total 4800 | 45 182 297 184 488 616 380 331 390 551 154 427 445 207 103 Wait 201 | . 12 29 23 11 56 10 2 15 33 . 2 2 4 2 Move 3900 | 38 143 234 138 378 477 314 299 329 350 142 396 391 185 86 Hop . | . . . . . . . . . . . . . . . Pick Up 60 | 1 1 13 4 17 2 1 4 2 6 3 1 4 1 . Fast Attach 47 | 6 3 2 1 2 . . 1 5 14 1 1 3 7 1 Attach 43 | . 1 1 1 3 5 . 3 2 10 1 4 5 2 5 Detach 12 | . 2 1 . . . . . . 3 . . . 6 . Swap 52 | . 1 3 3 4 15 . 2 8 10 1 3 1 1 . Drop 25 | . . 2 . 15 1 . . . . 6 . . 1 . Fire 349 | . 19 12 13 53 49 3 17 25 116 . 20 18 . 4 Melee . | . . . . . . . . . . . . . . . Ram . | . . . . . . . . . . . . . . . Kick 5 | . . . . . . . . . . . . . . 5 Crush 24 | . . . 1 3 . 15 1 . 3 . . 1 . . Escape Stasis 23 | . . . . . 11 . 2 4 6 . . . . . Rewire 59 | . . . . 2 . 37 . . . . . 20 . . Trap . | . . . . . . . . . . . . . . . Miscellaneous . | . . . . . . . . . . . . . . . Route ------- -11/Scrapyard -10/Materials -9/Materials -8/Materials -8/Storage -8/Garrison (discovered 2 exits: *Rec x2) -8/Recycling -6/Factory (discovered 5 exits: Low x2 / Ext x2 / Gar) -6/Garrison (discovered 3 exits: *Ext x3) -6/Extension -5/Factory -5/Upper Caves -5/Upper Caves -5/Zhirov -4/Proximity Caves History --------- Turn | Location | Event 6 | -11/Scrapyard | Discovered new exit (range 15) 69 | -11/Scrapyard | Entered Materials 312 | -10/Materials | Discovered new exit (range 5) 314 | -10/Materials | Build established: Mutant 378 | -10/Materials | Entered another Materials area 378 | -9/Materials | Evolved 2 slots: Propulsion x1, Weapon x1 791 | -9/Materials | Discovered new exit (range 14) 852 | -9/Materials | Build established: Hauler-Gunner 888 | -9/Materials | Entered another Materials area 888 | -8/Materials | Evolved 2 slots: Utility x2 906 | -8/Materials | Discovered new exit (range 13) 1188 | -8/Materials | Build established: Hauler-Tank 1215 | -8/Materials | Entered Storage 1660 | -8/Storage | Garrison activated, responded to threat 1766 | -8/Storage | Assisted by bots powering up and referring to "LRC-V3" 1845 | -8/Storage | Garrison activated, responded to threat 2062 | -8/Storage | Identified exit to Garrison 2064 | -8/Storage | Entered Garrison 2064 | -8/Garrison | Accompanied by 3 allies 2088 | -8/Garrison | Triggered checkpoint 2300 | -8/Garrison | Triggered checkpoint 2488 | -8/Garrison | Triggered checkpoint 2591 | -8/Garrison | Triggered checkpoint 2654 | -8/Garrison | Discovered new exit (range 14) 2681 | -8/Garrison | Identified exit to Recycling 2694 | -8/Garrison | Installed Relay Interface Framework 2968 | -8/Garrison | Triggered checkpoint 3067 | -8/Garrison | Discovered exit to Recycling (range 10) 3124 | -8/Garrison | Entered Recycling 3135 | -8/Recycling | Spotter reported a threat 3140 | -8/Recycling | Spotter reported a threat 3195 | -8/Recycling | Spotter reported a threat 3204 | -8/Recycling | Spotter reported a threat 3252 | -8/Recycling | Spotter reported a threat 3286 | -8/Recycling | Spotter reported a threat 3305 | -8/Recycling | Spotter reported a threat 3309 | -8/Recycling | Spotter reported a threat 3315 | -8/Recycling | Spotter reported a threat 3349 | -8/Recycling | Spotter reported a threat 3362 | -8/Recycling | Spotter reported a threat 3380 | -8/Recycling | Spotter reported a threat 3467 | -8/Recycling | Spotter reported a threat 3469 | -8/Recycling | Spotter reported a threat 3487 | -8/Recycling | Spotter reported a threat 3508 | -8/Recycling | Spotter reported a threat 3520 | -8/Recycling | Spotter reported a threat 3522 | -8/Recycling | Spotter reported a threat 3527 | -8/Recycling | Spotter reported a threat 3542 | -8/Recycling | Spotter reported a threat 3580 | -8/Recycling | Spotter reported a threat 3587 | -8/Recycling | Spotter reported a threat 3587 | -8/Recycling | Spotter reported a threat 3587 | -8/Recycling | Spotter reported a threat 3640 | -8/Recycling | Spotter reported a threat 3644 | -8/Recycling | Spotter reported a threat 3644 | -8/Recycling | Spotter reported a threat 3644 | -8/Recycling | Spotter reported a threat 3693 | -8/Recycling | Spotter reported a threat 3697 | -8/Recycling | Spotter reported a threat 3730 | -8/Recycling | Spotter reported a threat 3734 | -8/Recycling | Build established: Commander-Tank 3746 | -8/Recycling | Discovered new exit (range 10) 3760 | -8/Recycling | Identified exit to Factory 3771 | -8/Recycling | Entered Factory 3771 | -6/Factory | Accompanied by 5 allies 3771 | -6/Factory | Evolved 4 slots: Power x1, Propulsion x1, Utility x2 4075 | -6/Factory | Identified exit to Lower Caves 4075 | -6/Factory | Identified exit to Extension 4360 | -6/Factory | Identified exit to Garrison 4362 | -6/Factory | Entered Garrison 4362 | -6/Garrison | Accompanied by 3 allies 4410 | -6/Garrison | Build established: Hauler-Gunner 4502 | -6/Garrison | Destroyed 13 combat bots 4511 | -6/Garrison | Lost 6 parts (1p1n3u1w) 4514 | -6/Garrison | Triggered checkpoint 4588 | -6/Garrison | Discovered exit to Extension (range 9) 4674 | -6/Garrison | Triggered checkpoint 4776 | -6/Garrison | Triggered checkpoint 4848 | -6/Garrison | Discovered exit to Extension (range 11) 4960 | -6/Garrison | Triggered checkpoint 5044 | -6/Garrison | Discovered exit to Extension (range 10) 5074 | -6/Garrison | Expanded RIF knowledge: Program Shield 5084 | -6/Garrison | Build established: Scavenger-Mutant 5084 | -6/Garrison | Entered Extension 5270 | -6/Extension | Energy Cycler disabled 5270 | -6/Extension | Rescued a captive Derelict 5270 | -6/Extension | Rescued a captive Derelict 5271 | -6/Extension | Rescued a captive Derelict 5272 | -6/Extension | Rescued a captive Derelict 5272 | -6/Extension | Rescued a captive Derelict 5279 | -6/Extension | Rescued a captive Derelict 5393 | -6/Extension | Build established: Scavenger-Tank 5434 | -6/Extension | First assault squad dispatched 5569 | -6/Extension | Lost 6 parts (1n2u3w) 5732 | -6/Extension | Spotted B-75 Beast 5794 | -6/Extension | Lost 6 parts (1p3n1u1w) 5830 | -6/Extension | Build established: Scavenger-Gunner 5834 | -6/Extension | Disrupted transfer network 5856 | -6/Extension | Destroyed B-75 Beast 5863 | -6/Extension | Spotted B-75 Beast 5888 | -6/Extension | Destroyed B-75 Beast 5896 | -6/Extension | Discovered new exit (range 15) 5915 | -6/Extension | Core integrity fell below 50% 5943 | -6/Extension | System corruption reached 10% 5973 | -6/Extension | Lost 3 parts (1p1u1w) 6067 | -6/Extension | Entered Factory 6067 | -5/Factory | Evolved 2 slots: Utility x2 6308 | -5/Factory | Discovered new exit (range 17) 6333 | -5/Factory | Entered Upper Caves 6334 | -5/Upper Caves | Encountered a Warlord checkpoint 6459 | -5/Upper Caves | Spotted B-75 Beast 6501 | -5/Upper Caves | Attracted the attention of an 0b10 checkpoint 6567 | -5/Upper Caves | Destroyed B-75 Beast 6597 | -5/Upper Caves | Lost 3 parts (1n2u) 6897 | -5/Upper Caves | Attracted the attention of an 0b10 outpost 6925 | -5/Upper Caves | Destroyed 11 combat bots 7096 | -5/Upper Caves | Discovered new exit (range 12) 7114 | -5/Upper Caves | Entered another Upper Caves area 7127 | -5/Upper Caves | Learned Factory interactive machine intel 7208 | -5/Upper Caves | Attracted the attention of an 0b10 outpost 7236 | -5/Upper Caves | Destroyed 7 combat bots 7495 | -5/Upper Caves | Attracted the attention of an 0b10 checkpoint 7686 | -5/Upper Caves | Spotted B-75 Beast 7715 | -5/Upper Caves | Destroyed B-75 Beast 7743 | -5/Upper Caves | Lost 6 parts (2n4w) 7857 | -5/Upper Caves | Discovered new exit (range 11) 7875 | -5/Upper Caves | Entered Zhirov 7875 | -5/Zhirov | Discovered new exit (range 3) 7908 | -5/Zhirov | Met Zhirov 7940 | -5/Zhirov | Learned location of Quarantine (-3) 7940 | -5/Zhirov | Learned location of Testing (-2) 7940 | -5/Zhirov | Learned location of Command (-1) 7974 | -5/Zhirov | Build established: Scavenger-Mutant 7976 | -5/Zhirov | Zhirov requested help retrieving the SGEMP Prototype 8005 | -5/Zhirov | Found Alien Artifact 8006 | -5/Zhirov | Identified Integrated Reactor 8006 | -5/Zhirov | Installed Integrated Reactor, increased core energy generation (+2%) 8046 | -5/Zhirov | Found Alien Artifact 8046 | -5/Zhirov | Identified Transdimensional Reconstructor 8046 | -5/Zhirov | Warped through subspace 8214 | -5/Zhirov | Entered Proximity Caves 8262 | -4/Proximity Caves | Crushed by falling debris 8262 | -4/Proximity Caves | System corruption reached 10% 8276 | -4/Proximity Caves | Core integrity fell below 50% 8306 | -4/Proximity Caves | Lost 10 parts (5u5w) 8336 | -4/Proximity Caves | Core integrity fell below 20% 8357 | -4/Proximity Caves | Destroyed by G-73 Enforcer with Heavy Laser Last Messages --------------- 08320_ Slammed into G-67 Veteran. 08320_ Adv. Myomer Leg destroyed. 08320_ System corrupted by crushing effect (+5). 08320_ Destabilizing: System interference. 08320_ Armor Integrity Analyzer temporarily disabled. 08320_ Imp. Launcher Guidance Computer temporarily disabled. 08320_ Slug penetrates Wall. 08328_ Penetrated by Slug. 08331_ Hvy. Antimatter Reactor destroyed. 08334_ Slug penetrates Wall. 08334_ Penetrated by Slug. 08335_ Slug penetrates Wall. 08337_ System corrupted: Matter fused (-10). 08343_ Slug penetrates Wall. 08347_ Acquired derelict log, extracted data. World map updated: -2/Research. 08356_ Slug penetrates Wall. 08357_ Adv. Myomer Leg destroyed. [Achievement: Just Browsing] [Achievement: Achiever] Map ----- +----------------------------------------------------+ | | | | | | | | | ?????????????????????????????????????????????????? | | ?????????????????????????????????????????????????? | | ?????????????????????????????????????????????????? | | ?????????????????????????????????????????????????? | | ?????????????????????????????????????????????????? | | ?????????????????????????????????????????????????? | | ?????????????????????????????????????????????????? | | ?????????????????????????????????????????????????? | | ?????????????????????????????????????????????????? | | ?????????????????????????????????????????????????? | | ?????????????????????????????????????????????????? | | ?????????????????????????????????????????????????? | | ?????????????????????????????????????????????????? | | ?????????????????????????????????????????????????? | | ?????????????????????????????????????????????????? | | ????????????###??????????????????????????????????? | | ????????????# ##?????????????????????????????????? | | ????????##?## #????????#####????????????????????? | | ????????# ## ##????#### ##???????????????????? | | ????????# ###??# ##??????????????????? | | ???????## #### g #??????????????????? | | #???#### gg @ #??????????????????? | | #???# hg #??????????????????? | | #????# h ### ##??????????????????? | | #????## #### #???????????????????? | | #?????## ### ### #???????????????????? | | ####???# ####?? ###???????????????????? | | ##??# ## #????? #?????????????????????? | | #??## ### #???? #?????????????????????? | | #???# #?## #??#? #?????????????????????? | | #??## #??# #?? ? #?????????????????????? | | #??# #??# ##? #?##?????????????????????? | | ##?# ##??####?? #????????????????????????? | | #?# ##??##### #????????????????????????? | | #### ##? #????????????????????????? | | ### ### ##???????????????????????? | | ## ## ##??????????????????????? | | = #??????????????????????? | | %% #### #?????????????????? | | # ###### %!% #?????????????????? | | ## #????# ######?????????????????? | | ?## #???# #????????????????????? | | ??## #?# # # ###????????????????????? | | ???## ## ### ##??????????????????????? | | ????## ## #?? #???????????????????????? | | ?????### ### #?? #???????????????????????? | +----------------------------------------------------+ Best States ------------- Heat Dissipation 78 Energy Generation 35 Energy Capacity 1140 Matter Stores 300 Matter Capacity 300 Sight Range 20 Robot Scan Range 13 Terrain Scan Range 20 Terrain Scan Density 10 Armor Coverage 600 Resistance: EM 15 Core Shielding 20 Evasion (%) 40 Targeting Accuracy 8 Launcher Accuracy 30 Armor Integrity Analysis 33 Recoil Reduction 4 Particle Charging 30 Kinecelleration 40 Item Schematics ----------------- Grenade Launcher | -9/Materials | Scanalyzed Assault Drone Bay | -5/Zhirov | Free Exp. Heat Sink | -5/Zhirov | Free Exp. Optical Array | -5/Zhirov | Free Imp. Arc Thrower | -5/Zhirov | Free Robot Schematics ------------------ None Fabricated ------------ Nothing Alien Tech Used ----------------- Integrated Reactor Transdimensional Reconstructor Achievements -------------- Achiever Alien Tech Armchair Analyst Just Browsing Subspace Traveler The Science Guy \\IAMDERELICT Challenges ------------ None Game ------ Seed MiningForceCompressor Manual? 0 Play Time 01:27:54 Cumulative 16.6 hours Start 2020.02.24 @ 03:58:07 End 2020.02.24 @ 05:28:54 Sessions 1 Manual Loads 0 Difficulty Rogue Special Mode None Game No. 18 Rogue 18 Adventurer 0 Explorer 0 Win Type - Total 0 Types 0/0/0/0/0/0/0 Lore% 19 Gallery% 26 Achievement% 26 Wizard Run 0 Options --------- ASCII 0 Keyboard 1 Movement Numpad Keybinds 0 Fullscreen 1 Font 18/SmallcapsGlow Map View 76x50 Tactical HUD 1 Map Filters NONE Filters NONE Steam 1 RUN: a6d60bb7-31b1-4c3e-a3ab-2066b315f162